bitfinex-derivatives/quotes_ETHF0:USTF0_20250520
["timestamp","ask_amount","ask_price","bid_price","bid_amount"]
[1747758132277,2.20883,2481.2,2481.1,0.80585]
[1747758132665,0.80585,2481.1,2481.0,9.29990473]
[1747758132875,0.80585,2481.1,2481.0,8.49404473]
[1747758133077,4.224125,2481.1,2481.0,8.49404473]
[1747758133387,3.2078,2481.6,2481.2,0.80578]
[1747758133681,0.80579,2481.3,2481.2,0.80578]
[1747758134076,0.80581,2481.3,2481.2,0.8058]
[1747758134575,0.80582,2481.2,2481.1,1.3289]
[1747758134784,0.80585,2481.1,2481.0,8.49404473]
[1747758134973,2.11485,2481.1,2481.0,9.29993473]
[1747758135266,4.130125,2481.1,2481.0,9.29993473]
[1747758135467,3.324275,2481.1,2481.0,9.29993473]
[1747758135678,0.80584,2481.2,2481.1,0.80582]
[1747758136181,0.80582,2481.2,2481.1,1.2841]
[1747758136382,0.80585,2481.1,2481.0,8.49404473]
[1747758136680,2.11485,2481.1,2481.0,9.29993473]
[1747758136880,3.324275,2481.1,2481.0,9.29993473]
[1747758137082,4.130125,2481.1,2481.0,9.29993473]
[1747758137281,3.324275,2481.1,2481.0,9.29993473]
[1747758137578,3.2078,2481.6,2481.3,0.80575]
[1747758137882,0.80578,2481.4,2481.3,0.80575]
[1747758138384,2.01503001,2481.4,2481.3,0.80575]
[1747758138570,2.01503001,2481.4,2481.2,0.8058]
[1747758138775,0.80582,2481.2,2481.1,2.14794]
[1747758138973,0.80585,2481.1,2480.4,0.21865394]
[1747758139177,3.2078,2480.9,2480.5,1.3421]
[1747758139485,0.80601,2480.7,2480.6,0.80598]
[1747758139688,3.2078,2480.9,2480.6,8.488]
[1747758139878,0.80589,2481.0,2480.9,0.80592]
[1747758140186,0.80595,2480.8,2480.7,0.00604473]
[1747758140382,0.80595,2480.8,2480.7,8.49404473]
[1747758140685,2.82147,2480.8,2480.7,8.49404473]
[1747758140883,4.17627,2480.8,2480.7,8.49404473]
[1747758141385,4.17627,2480.8,2480.7,9.30002473]
[1747758141683,6.13627,2480.8,2480.7,0.00604473]
[1747758141883,6.33627,2480.8,2480.7,0.00604473]
[1747758142077,7.04067,2480.8,2480.7,0.00604473]
[1747758142287,9.88067,2480.8,2480.7,0.00604473]
[1747758142584,13.49067,2480.8,2480.7,0.00604473]
[1747758143185,9.88067,2480.8,2480.7,0.00604473]
[1747758143575,4.88067,2480.8,2480.7,0.00604473]
[1747758143779,4.17627,2480.8,2480.7,0.00604473]
[1747758144182,4.17627,2480.8,2480.7,4.73e-06]
[1747758144377,7.66627,2480.8,2480.7,4.73e-06]
[1747758144577,12.66627,2480.8,2480.7,4.73e-06]
[1747758145383,7.66627,2480.8,2480.7,4.73e-06]
[1747758145589,4.17627,2480.8,2480.7,4.73e-06]
[1747758146090,6.16627,2480.8,2480.7,4.73e-06]
[1747758147391,4.17627,2480.8,2480.7,4.73e-06]
[1747758147687,11.96627,2480.8,2480.7,4.73e-06]
[1747758150096,17.16627,2480.8,2480.7,4.73e-06]
[1747758150590,2.79,2480.8,2480.7,0.80598473]
[1747758150792,3.2078,2480.9,2480.8,0.80595]
[1747758150995,0.00604473,2481.2,2481.1,0.80585]
[1747758151292,0.00604473,2481.2,2481.0,4.01366]
[1747758151493,0.80589,2481.0,2480.9,8.49]
[1747758151802,0.80594,2480.9,2480.7,4.73e-06]
[1747758151998,0.80594,2480.9,2480.8,0.80593]
[1747758152795,0.80591,2481.0,2480.9,0.80592]
[1747758153103,0.80594,2480.9,2480.8,0.80593]
[1747758153302,0.80595,2480.8,2480.7,1.32320473]
[1747758153606,0.80595,2480.8,2480.7,2.12918473]
[1747758153902,0.80595,2480.8,2480.7,1.32320473]
[1747758154104,2.82147,2480.8,2480.7,1.32320473]
[1747758154303,0.80595,2480.8,2480.7,1.32320473]
[1747758154504,2.01552,2480.8,2480.7,2.12918473]
[1747758154699,1.3658,2480.9,2480.8,0.80595]
[1747758154909,0.80594,2480.9,2480.8,2.14665]
[1747758155104,0.80594,2480.9,2480.8,1.3407]
[1747758155604,0.00604473,2481.2,2481.0,0.80586]
[1747758155805,0.80587,2481.1,2481.0,0.80586]
[1747758156202,0.00604473,2481.2,2481.1,0.80585]
[1747758156408,0.00604473,2481.2,2480.7,4.73e-06]
[1747758156409,0.80595,2480.8,2480.7,4.73e-06]
[1747758157202,0.80595,2480.8,2480.7,0.80598473]
[1747758157605,0.80595,2480.8,2480.7,1.1284057]
[1747758157802,0.80595,2480.8,2480.7,0.3224257]
[1747758158904,6.02927,2480.8,2480.7,0.3224257]
[1747758159105,10.41927,2480.8,2480.7,0.3224257]
[1747758159406,6.02927,2480.8,2480.7,4.73e-06]
[1747758159602,4.01375,2480.8,2480.7,0.80598473]
[1747758159906,0.80595,2480.8,2480.7,0.80598473]
[1747758160105,0.80595,2480.8,2480.7,4.73e-06]
[1747758160794,2.17165,2480.8,2480.7,4.73e-06]
[1747758161198,2.82147,2480.8,2480.7,0.80598473]
[1747758161398,0.80595,2480.8,2480.7,0.80598473]
[1747758161707,4.01374,2480.9,2480.8,0.80595]
[1747758161901,0.80595,2480.8,2480.7,4.73e-06]
[1747758162202,2.16855,2480.8,2480.7,4.73e-06]
[1747758162407,4.18407,2480.8,2480.7,4.73e-06]
[1747758165104,9.88507,2480.8,2480.7,4.73e-06]
[1747758165309,0.80609,2480.4,2480.3,8.67e-06]
[1747758165606,0.80609,2480.4,2480.2,9.64e-06]
[1747758165607,0.80612,2480.3,2480.2,9.64e-06]
[1747758165811,5.22652,2480.3,2480.2,9.64e-06]
[1747758166108,17.442445,2480.3,2480.2,9.64e-06]
[1747758167209,0.80618,2480.1,2480.0,0.00604473]
[1747758167404,6.14398,2480.1,2480.0,0.00604473]
[1747758167605,8.16007,2480.1,2480.0,0.00604473]
[1747758167913,9.57047,2480.1,2480.0,0.00604473]
[1747758168309,7.44047,2480.1,2480.0,0.81226473]
[1747758168510,6.03007,2480.1,2480.0,0.00604473]
[1747758168908,6.03007,2480.1,2480.0,1.39884473]
[1747758169116,6.03007,2480.1,2480.0,0.00604473]
[1747758169310,10.07007,2480.1,2480.0,0.00604473]
[1747758169913,11.36717,2480.1,2480.0,0.00604473]
[1747758174522,11.36717,2480.1,2480.0,4.73e-06]
[1747758176522,26.64221554,2480.1,2480.0,4.73e-06]
[1747758177021,11.36717,2480.1,2480.0,4.73e-06]
[1747758177218,4.01398,2480.1,2480.0,4.73e-06]
[1747758177417,4.01398,2480.1,2480.0,0.80622473]
[1747758177614,4.67985012,2480.1,2480.0,4.73e-06]
[1747758177820,4.67985012,2480.1,2480.0,1.34610473]
[1747758178721,6.69594012,2480.1,2480.0,1.34610473]
[1747758178922,4.67985012,2480.1,2480.0,1.34610473]
[1747758179319,3.87367012,2480.1,2480.0,2.15232473]
[1747758181025,4.01398,2480.1,2480.0,1.34610473]
[1747758182130,3.2078,2480.1,2480.0,2.15232473]
[1747758183025,4.01398,2480.1,2480.0,2.15232473]
[1747758183226,4.01398,2480.1,2480.0,1.34610473]
[1747758183425,4.01398,2480.1,2480.0,2.15232473]
[1747758184127,4.01398,2480.1,2480.0,10.72632473]
[1747758184728,3.2078,2480.1,2480.0,10.72632473]
[1747758184925,0.80612,2480.4,2480.3,0.80609]
[1747758186227,0.80612,2480.4,2480.3,2.81199]
[1747758186433,0.80612,2480.4,2480.3,3.13447133]
[1747758186627,0.66587012,2480.6,2480.5,0.80605]
[1747758186828,1.47189012,2480.6,2480.5,0.80605]
[1747758187132,0.66587012,2480.6,2480.5,0.80605]
[1747758187330,0.66587012,2480.6,2480.5,10.35845]
[1747758187523,0.66587012,2480.6,2480.5,5.35845]
[1747758187826,0.80595,2480.9,2480.8,0.80592]
[1747758188231,4.67958012,2481.0,2480.9,0.80592]
[1747758188531,0.80596,2480.9,2480.8,0.80594]
[1747758188827,0.80596,2480.9,2480.8,1.3446]
[1747758189530,0.80596,2480.9,2480.8,2.15056]
[1747758190030,0.66587012,2481.0,2480.9,0.80592]
[1747758190220,0.66587012,2481.0,2480.9,2.82102]
[1747758190426,1.47176012,2481.0,2480.9,2.82102]
[1747758191431,1.47176012,2481.0,2480.9,3.14342612]
[1747758191632,1.47176012,2481.0,2480.9,2.33750612]
[1747758191830,1.47176012,2481.0,2480.9,3.14342612]
[1747758192036,0.80589,2481.0,2480.9,2.33750612]
[1747758192334,0.80589,2481.0,2480.9,2.48792612]
[1747758193227,0.80589,2481.0,2480.9,1.68200612]
[1747758193430,2.821245,2481.0,2480.9,1.68200612]
[1747758194834,2.821245,2481.0,2480.9,1.3596]
[1747758195131,2.821245,2481.0,2480.9,2.16552]
[1747758195434,2.015355,2481.0,2480.9,2.16552]
[1747758195635,0.80588,2481.1,2481.0,0.80589]
[1747758195930,0.00604473,2481.2,2481.1,0.80586]
[1747758196832,0.00604473,2481.2,2481.1,9.27586]
[1747758198433,0.00604473,2481.2,2481.1,9.59821915]
[1747758199036,0.00604473,2481.2,2481.1,10.29831915]
[1747758200540,0.00604473,2481.2,2481.1,15.29831915]
[1747758200842,0.80564,2481.9,2481.8,0.80561]
[1747758201035,0.80564,2481.9,2481.3,2.01449]
[1747758201036,0.80566,2481.7,2481.6,8.469]
[1747758201548,0.80566,2481.7,2481.4,2.76164]
[1747758201549,0.80573,2481.5,2481.4,2.76164]
[1747758201841,0.80573,2481.5,2481.4,1.96194473]
[1747758202441,2.09043,2481.5,2481.4,0.00604473]
[1747758202833,4.10538,2481.5,2481.4,0.00604473]
[1747758203636,4.75748,2481.5,2481.4,0.00604473]
[1747758203840,9.13748,2481.5,2481.4,0.00604473]
[1747758204042,4.75748,2481.5,2481.4,0.00604473]
[1747758204245,4.75748,2481.5,2481.4,0.81180473]
[1747758204246,4.10538,2481.5,2481.4,0.81180473]
[1747758204450,2.09043,2481.5,2481.4,0.81180473]
[1747758204950,2.09043,2481.5,2481.4,0.00604473]
[1747758205349,2.09043,2481.5,2481.4,0.81180473]
[1747758205547,2.09043,2481.5,2481.4,2.21050473]
[1747758205750,2.09043,2481.5,2481.4,1.40474473]
[1747758206049,2.09043,2481.5,2481.4,2.21050473]
[1747758206245,1.2847,2481.5,2481.4,2.21050473]
[1747758206449,2.6746,2481.8,2481.4,1.40474473]
[1747758206650,0.80573,2481.6,2481.5,0.8057]
[1747758206848,3.2078,2481.6,2481.4,0.00604473]
[1747758207044,0.80573,2481.6,2481.5,0.80573]
[1747758207445,4.00272,2481.8,2481.4,0.67124473]
[1747758207446,0.80573,2481.5,2481.4,0.67124473]
[1747758207645,2.17913,2481.5,2481.4,1.47700473]
[1747758207843,4.19408,2481.5,2481.4,0.00604473]
[1747758208046,2.17913,2481.5,2481.4,0.00604473]
[1747758208248,2.17913,2481.5,2481.4,0.81180473]
[1747758208454,2.17913,2481.5,2481.4,1.32144473]
[1747758208658,2.17913,2481.5,2481.4,0.00604473]
[1747758209951,4.19408,2481.5,2481.4,0.00604473]
[1747758212457,2.01469,2481.1,2480.3,3.2078]
[1747758212652,0.80602,2480.7,2480.6,0.80598]
[1747758213050,2.7018,2481.0,2480.5,3.29653]
[1747758213253,0.80594,2480.9,2480.8,0.80592]
[1747758213453,2.17534,2480.9,2480.8,0.80592]
[1747758216060,1.3694,2480.9,2480.8,0.80592]
[1747758216359,0.80579,2481.3,2481.2,0.80579]
[1747758216858,2.820905,2481.3,2481.2,0.80579]
[1747758217252,0.80579,2481.3,2481.2,0.80579]
[1747758217660,2.820905,2481.3,2481.2,0.80579]
[1747758217859,0.80579,2481.3,2481.2,0.80579]
[1747758218060,3.2078,2481.4,2481.2,0.32242979]
[1747758218355,0.80584,2481.3,2481.2,1.12822979]
[1747758218546,0.80584,2481.3,2481.2,9.48822979]
[1747758218750,0.80574,2481.5,2481.2,8.68242979]
[1747758218962,3.2078,2481.7,2481.6,0.8057]
[1747758219252,3.2078,2481.7,2481.5,0.80571]
[1747758219458,0.8057,2481.6,2481.5,8.36]
[1747758219657,2.1664,2481.6,2481.5,9.16573]
[1747758220049,0.80568,2481.7,2481.6,0.80566]
[1747758220259,1.46799742,2481.7,2481.6,3.53396]
[1747758220557,1.46797742,2481.7,2481.6,3.53396]
[1747758220953,0.66231742,2481.7,2481.6,3.53396]
[1747758221662,0.8057,2481.6,2481.5,3.82437592]
[1747758221855,0.8057,2481.6,2481.5,12.18437592]
[1747758222057,2.0981,2481.6,2481.5,12.18437592]
[1747758222252,2.0981,2481.6,2481.5,14.36640592]
[1747758222449,2.0981,2481.6,2481.5,13.56067592]
[1747758223053,2.0981,2481.6,2481.5,14.36640592]
[1747758223951,2.0981,2481.6,2481.5,10.35287592]
[1747758224259,2.0981,2481.6,2481.5,8.97657592]
[1747758224654,4.80997,2481.6,2481.5,8.68242979]
[1747758225159,2.7951,2481.6,2481.5,8.68242979]
[1747758225360,4.80997,2481.6,2481.5,8.68242979]
[1747758225758,4.80997,2481.6,2481.5,0.32242979]
[1747758228459,4.80997,2481.6,2481.5,1.12815979]
[1747758228460,2.7951,2481.6,2481.5,1.12815979]
[1747758228661,2.7951,2481.6,2481.5,0.32242979]
[1747758228854,4.80997,2481.6,2481.5,0.32242979]
[1747758230262,0.9657,2481.6,2481.5,1.71982979]
[1747758230561,0.8057,2481.6,2481.5,2.52555979]
[1747758231059,0.8057,2481.6,2481.5,1.71982979]
[1747758231762,2.0986,2481.6,2481.5,0.32242979]
[1747758232065,4.11347,2481.6,2481.5,0.32242979]
[1747758232662,4.11347,2481.6,2481.3,8.65414613]
[1747758232663,13.14347,2481.6,2481.3,0.29414613]
[1747758232856,0.80589,2481.0,2480.9,0.5887795]
[1747758233058,0.80602,2480.6,2480.5,0.74242514]
[1747758233364,4.01382,2480.6,2480.5,0.74242514]
[1747758233562,4.01382,2480.6,2480.5,1.54847514]
[1747758233771,0.80602,2480.6,2480.5,1.54847514]
[1747758233958,2.2012,2480.7,2480.6,0.80602]
[1747758234268,2.2012,2480.7,2480.6,1.378]
[1747758234963,2.2012,2480.7,2480.5,0.00604473]
[1747758234964,0.80602,2480.6,2480.5,0.00604473]
[1747758235161,2.19602,2480.6,2480.5,0.00604473]
[1747758235369,4.2117,2480.6,2480.5,0.00604473]
[1747758236568,9.2117,2480.6,2480.5,0.00604473]
[1747758236771,4.2117,2480.6,2480.5,0.00604473]
[1747758237864,0.80602,2480.6,2480.5,0.00604473]
[1747758238369,4.1755,2480.6,2480.5,0.00604473]
[1747758240274,0.80618,2480.1,2480.0,9.6807]
[1747758241561,0.80622,2480.0,2479.9,0.644]
[1747758241769,2.19362,2480.0,2479.9,0.644]
[1747758241968,4.01401,2480.1,2479.9,1.9736]
[1747758242167,0.80621,2480.1,2480.0,0.80622]
[1747758242374,0.80621,2480.1,2480.0,2.13582]
[1747758242872,0.80621,2480.1,2480.0,1.3296]
[1747758243068,0.80625,2479.9,2479.8,1.97637605]
[1747758243268,0.80625,2479.9,2479.8,1.33367605]
[1747758244174,0.80625,2479.9,2479.8,2.13995605]
[1747758244579,0.80624,2480.0,2479.9,0.80625]
[1747758244873,0.80622,2480.0,2479.9,1.4003]
[1747758245073,2.22272,2480.0,2479.9,1.4003]
[1747758245780,0.80625,2479.9,2479.8,0.00407605]
[1747758246074,2.22275,2479.9,2479.8,0.00407605]
[1747758248981,0.80624,2480.0,2479.9,0.80622]
[1747758249182,0.80624,2480.0,2479.9,0.6568]
[1747758249876,0.80624,2480.0,2479.9,1.46305]
[1747758250075,0.80624,2480.0,2479.9,2.0664]
[1747758250678,0.80624,2480.0,2479.9,2.87265]
[1747758251582,4.01401,2480.1,2480.0,0.80622]
[1747758251778,0.80616,2480.2,2480.1,0.80615]
[1747758252075,0.00604473,2480.3,2480.2,0.80615]
[1747758252279,0.00604473,2480.3,2480.2,2.11895]
[1747758252476,0.00604473,2480.3,2480.2,7.11895]
[1747758253378,0.00604473,2480.3,2480.2,7.44149349]
[1747758254784,0.00604473,2480.3,2480.2,2.44149349]
[1747758255087,0.00604473,2480.3,2480.2,10.80549349]
[1747758255780,0.6559,2481.0,2480.2,14.99934349]
[1747758255986,0.6559,2481.0,2480.9,0.80589]
[1747758255987,0.80591,2481.0,2480.9,0.80589]
[1747758256187,3.2078,2481.1,2480.4,5.22301]
[1747758256375,0.806,2480.8,2480.7,2.16429]
[1747758256981,0.806,2480.8,2480.7,2.48683349]
[1747758257487,1.37484473,2481.0,2480.9,0.80592]
[1747758257881,0.00604473,2481.0,2480.9,0.80592]
[1747758258082,0.81193473,2481.0,2480.9,0.80592]
[1747758259885,0.81193473,2481.0,2479.7,0.73638041]
[1747758259886,0.00604473,2481.0,2479.7,0.73638041]
[1747758260078,0.80598,2480.8,2480.7,0.80596]
[1747758261085,2.01552,2480.8,2480.3,4.98173529]
[1747758261386,0.80609,2480.4,2480.3,7.16241529]
[1747758261787,0.80609,2480.4,2480.3,3.14853529]
[1747758262091,2.015845,2480.4,2480.0,3.2078]
[1747758262286,0.80618,2480.1,2480.0,5.38862]
[1747758262584,0.80618,2480.1,2480.0,1.3746]
[1747758262792,2.82227,2480.1,2480.0,2.18082]
[1747758263891,0.80622,2480.0,2479.9,0.44033529]
[1747758264087,0.80625,2479.9,2479.8,0.00407605]
[1747758264583,4.20920001,2479.9,2479.8,0.00407605]
[1747758265184,7.47920001,2479.9,2479.8,6.05e-06]
[1747758266086,5.46295,2479.9,2479.8,6.05e-06]
[1747758266280,12.47920001,2479.9,2479.8,6.05e-06]
[1747758267294,12.79553337,2479.9,2479.8,6.05e-06]
[1747758267485,17.99553337,2479.9,2479.8,6.05e-06]
[1747758267684,26.36053337,2479.9,2479.8,6.05e-06]
[1747758268589,0.80641,2479.4,2479.3,0.71355]
[1747758268785,0.80667,2478.6,2478.5,0.29440259]
[1747758269085,0.80674,2478.4,2478.3,0.44033529]
[1747758269290,0.80677,2478.3,2478.2,0.2939228]
[1747758269490,5.68027,2478.3,2478.2,0.2939228]
[1747758269690,7.697825,2478.3,2478.2,0.2939228]
[1747758270190,0.8069,2477.9,2477.8,2.35555653]
[1747758270390,4.0147,2477.9,2477.8,2.35555653]
[1747758270591,9.61258,2477.9,2477.8,2.35555653]
[1747758271594,9.61258,2477.9,2477.4,0.80705]
[1747758271595,0.80701,2477.6,2477.4,0.80705]
[1747758271890,0.80716,2477.1,2476.6,3.2078]
[1747758272086,0.80723,2476.9,2476.7,0.80726]
[1747758272293,2.1233,2477.0,2476.8,2.09613]
[1747758272592,0.00604473,2477.1,2477.0,0.80719]
[1747758273091,1.32214473,2477.1,2477.0,0.80719]
[1747758273993,0.00604473,2477.1,2477.0,0.80719]
[1747758275093,0.81321473,2477.1,2476.9,0.8072]
[1747758275284,2.11432473,2477.1,2476.8,1.2889]
[1747758275491,2.11431473,2477.1,2476.9,0.80722]
[1747758275686,1.30714473,2477.1,2476.9,0.80722]
[1747758276288,0.80719,2477.0,2476.8,2.09614]
[1747758276592,1.30714473,2477.1,2476.8,1.2889]
[1747758276792,4.5089,2476.9,2476.5,9.045]
[1747758277093,4.5089,2476.9,2476.5,1.3068]
[1747758277094,4.01512,2476.6,2476.5,1.3068]
[1747758277394,0.80738,2476.4,2476.3,0.01722]
[1747758277797,1.3011,2476.5,2476.3,0.01722]
[1747758278192,0.80738,2476.4,2476.3,0.01722]
[1747758278680,4.21888,2476.4,2476.3,0.01722]
[1747758279094,2.19978,2476.4,2476.3,0.01722]
[1747758279394,4.21888,2476.4,2476.3,0.01722]
[1747758279592,4.21888,2476.4,2476.3,1.34902]
[1747758279789,1.3924,2476.4,2476.3,2.15644]
[1747758279989,1.3924,2476.4,2476.3,0.01722]
[1747758280189,4.21888,2476.4,2476.3,0.01722]
[1747758281590,2.19978,2476.4,2476.3,0.01722]
[1747758281782,4.21888,2476.4,2476.3,0.01722]
[1747758285991,8.11888,2476.4,2476.3,0.01722]
[1747758286199,0.80757,2475.8,2475.7,1.3812]
[1747758286393,4.01537,2475.8,2475.7,1.3812]
[1747758286803,4.01537,2475.8,2475.7,2.1888]
[1747758287297,3.2078,2475.8,2475.7,2.1888]
[1747758287502,0.80756,2475.9,2475.7,1.3812]
[1747758287692,0.80756,2475.9,2475.8,0.80756]
[1747758288402,0.80754,2475.9,2475.8,0.80755]
[1747758288596,0.80757,2475.8,2475.7,1.3812]
[1747758288804,0.80757,2475.8,2475.7,2.1888]
[1747758288996,0.80757,2475.8,2475.7,1.3812]
[1747758289196,0.80757,2475.8,2475.7,2.1888]
[1747758289504,0.80757,2475.8,2475.7,1.3812]
[1747758289803,0.80757,2475.8,2475.7,1.46606477]
[1747758290511,2.82716,2475.8,2475.7,1.46606477]
[1747758290704,0.80763,2475.6,2475.5,0.6909]
[1747758290999,0.80763,2475.6,2475.5,1.3226]
[1747758291207,2.827385,2475.6,2475.5,1.3226]
[1747758291698,2.01919,2475.5,2475.1,0.639]
[1747758291906,0.80786,2474.9,2474.8,1.3226]
[1747758292208,4.01566,2474.9,2474.8,1.3226]
[1747758292400,5.228125,2474.9,2474.5,0.08486477]
[1747758292606,0.80796,2474.6,2474.5,0.89285477]
[1747758292806,0.80796,2474.6,2474.5,0.80799]
[1747758293008,0.80796,2474.6,2474.1,8.378]
[1747758293009,1.3422,2474.8,2474.1,10.39829]
[1747758293200,0.80798,2474.6,2474.1,10.39829]
[1747758293400,0.808,2474.5,2474.4,0.808]
[1747758293600,0.80803,2474.4,2474.3,0.80804]
[1747758294004,0.80806,2474.3,2474.2,0.80807]
[1747758294202,3.21385706,2474.6,2474.1,8.378]
[1747758294396,0.80805,2474.4,2474.3,0.80806]
[1747758295003,0.80801,2474.5,2474.3,0.80806]
[1747758295203,0.80801,2474.5,2474.1,8.378]
[1747758295404,4.50215706,2474.6,2474.4,0.80802]
[1747758295609,0.80803,2474.4,2474.3,0.80804]
[1747758295804,2.01999,2474.5,2473.8,1.2953]
[1747758296012,0.80819,2473.9,2473.8,1.2953]
[1747758296707,0.80825,2473.7,2473.6,0.32325141]
[1747758296902,4.01605,2473.7,2473.6,0.32325141]
[1747758297107,6.037355,2473.7,2473.6,0.32325141]
[1747758297310,0.80835,2473.4,2473.3,0.43604523]
[1747758297508,15.56515,2473.4,2473.3,0.43604523]
[1747758297705,17.5867,2473.4,2473.3,0.43604523]
[1747758297904,22.7867,2473.4,2473.3,0.43604523]
[1747758298200,0.80845,2473.1,2472.7,3.2078]
[1747758298406,0.80855,2472.8,2472.7,3.2078]
[1747758298713,0.80854,2472.9,2472.7,0.80858]
[1747758299011,4.01631,2473.0,2472.8,0.80853]
[1747758299319,3.2078,2473.0,2472.9,0.80852]
[1747758299506,3.2078,2473.0,2472.8,3.54853]
[1747758299713,0.80852,2472.9,2472.8,2.74]
[1747758299912,2.15362,2472.9,2472.8,2.74]
[1747758300103,0.80865,2472.5,2472.4,3.2078]
[1747758300304,0.80868,2472.4,2471.9,3.8932]
[1747758300611,5.230125,2472.5,2471.9,3.8932]
[1747758300816,9.7271,2472.6,2472.3,0.80869]
[1747758301011,1.3451,2472.6,2472.0,0.7006]
[1747758301218,0.80875,2472.2,2472.0,1.50939]
[1747758301419,0.80874,2472.3,2472.1,0.80878]
[1747758301614,1.3451,2472.4,2472.0,0.7006]
[1747758301814,0.80871,2472.3,2472.1,0.80875]
[1747758302118,8.385,2472.8,2472.5,0.80863]
[1747758302319,0.80863,2472.6,2472.2,3.2078]
[1747758302519,0.80863,2472.6,2472.4,0.80866]
[1747758302714,0.8086,2472.7,2472.5,0.80865]
[1747758302915,0.80862,2472.6,2472.4,0.80865]
[1747758303118,3.2078,2473.0,2472.5,5.9478]
[1747758303311,0.81451706,2473.1,2472.9,0.80849]
[1747758303618,0.00605706,2473.1,2473.0,0.80848]
[1747758303819,0.80855,2472.8,2472.7,0.662]
[1747758304217,0.80858,2472.7,2472.6,2.74]
[1747758304719,6.3467,2472.7,2472.6,2.74]
[1747758305014,11.3467,2472.7,2472.6,1.10359008]
[1747758305222,0.80874,2472.2,2472.1,0.08486477]
[1747758306626,5.2935,2472.4,2472.1,0.08486477]
[1747758306933,6.50725,2472.4,2472.1,2.27111477]
[1747758307132,0.80874,2472.3,2472.2,1.3775]
[1747758307626,2.83116,2472.3,2472.2,1.3775]
[1747758307830,2.83116,2472.3,2472.1,0.08486477]
[1747758307831,0.80874,2472.2,2472.1,0.08486477]
[1747758308130,2.20564,2472.2,2472.1,0.08486477]
[1747758308322,0.80914,2471.0,2470.9,0.29221799]
[1747758308522,0.80927,2470.6,2470.3,0.73638041]
[1747758308719,5.11707,2470.6,2470.3,0.73638041]
[1747758308931,12.14091,2470.6,2470.3,0.73638041]
[1747758309221,12.14091,2470.6,2470.5,6.12e-06]
[1747758309222,14.88091,2470.6,2470.5,6.12e-06]
[1747758309734,0.80933,2470.4,2470.3,6.53e-06]
[1747758309933,6.41933,2470.4,2470.3,6.53e-06]
[1747758310133,0.8094,2470.2,2470.1,0.48254678]
[1747758310335,4.0172,2470.2,2470.1,0.48254678]
[1747758310526,2.02417001,2470.2,2470.1,0.48254678]
[1747758310727,1.3102,2470.9,2470.1,6.85254678]
[1747758310927,2.66858,2470.9,2470.2,4.01718]
[1747758311121,2.68858,2470.9,2470.1,3.51702]
[1747758311328,0.80936,2470.4,2470.1,2.7076]
[1747758311522,3.2078,2470.7,2470.2,1.2802]
[1747758311733,3.2078,2471.0,2470.2,1.2802]
[1747758312031,1.3165,2471.1,2470.7,3.2078]
[1747758312335,0.00607054,2471.2,2470.7,3.2078]
[1747758312336,0.00607054,2471.2,2471.1,0.8091]
[1747758312639,0.00607054,2471.2,2471.1,8.403]
[1747758312828,8.72506465,2472.2,2471.1,8.403]
[1747758312829,4.21644583,2472.6,2471.1,14.6832]
[1747758313135,0.80886,2471.9,2471.6,0.80893]
[1747758313327,1.3165,2472.3,2471.7,1.2802]
[1747758313529,1.3165,2472.3,2471.8,0.80885]
[1747758313730,1.32257054,2472.3,2471.9,1.2802]
[1747758313930,0.80875,2472.2,2471.9,2.08902]
[1747758314126,0.80881,2472.0,2471.9,1.2802]
[1747758314326,0.80881,2472.0,2471.9,4.0202]
[1747758314532,3.261505,2472.0,2471.9,2.74]
[1747758314925,0.80881,2472.0,2471.9,2.74]
[1747758315136,0.80881,2472.0,2471.8,0.00607054]
[1747758315137,0.00607054,2472.3,2471.8,0.00607054]
[1747758315438,0.80874,2472.2,2471.8,1.38787054]
[1747758315627,0.00607054,2472.3,2471.9,0.7053]
[1747758315830,0.80878,2472.1,2472.0,1.3818]
[1747758316230,0.80885,2471.9,2471.8,0.00607054]
[1747758316432,0.80883,2472.0,2471.8,0.00607054]
[1747758316631,3.2078,2472.1,2471.8,1.38787054]
[1747758317030,0.00607054,2472.3,2472.0,3.2078]
[1747758317228,3.2078,2472.6,2472.1,1.37436477]
[1747758317527,0.80875,2472.2,2472.1,1.37436477]
[1747758317727,1.313,2472.6,2472.1,1.37436477]
[1747758317931,1.313,2472.6,2472.3,0.80869]
[1747758318132,1.313,2472.6,2472.4,1.2895]
[1747758318340,2.12164,2472.6,2472.4,1.2895]
[1747758318638,0.00607054,2472.7,2472.6,0.80862]
[1747758318938,0.00607054,2472.7,2472.6,9.65362]
[1747758319141,0.00607054,2472.7,2472.6,14.65362]
[1747758319438,0.00607054,2472.7,2472.6,13.56962]
[1747758319644,0.00607054,2472.7,2472.6,12.761]
[1747758319939,0.00607054,2472.7,2472.6,13.56962]
[1747758320134,0.00607054,2472.7,2472.6,18.56962]
[1747758320638,0.8083,2473.6,2473.4,0.80835]
[1747758320839,4.4871,2473.9,2473.5,1.307]
[1747758321032,0.80829,2473.6,2473.5,1.307]
[1747758321232,2.02082,2473.5,2472.6,3.2078]
[1747758321429,0.80851,2473.0,2472.8,1.31307054]
[1747758321635,0.80852,2472.9,2472.8,1.31307054]
[1747758323039,1.2793,2473.1,2472.8,1.31307054]
[1747758323235,0.80852,2472.9,2472.8,1.31307054]
[1747758323743,7.97828,2472.9,2472.8,0.00607054]
[1747758323928,6.03828,2472.9,2472.8,0.00607054]
[1747758324133,0.80868,2472.4,2472.3,0.32353132]
[1747758324338,3.2078,2472.7,2472.3,0.32353132]
[1747758324546,3.2078,2472.7,2472.4,1.3067]
[1747758324547,1.321,2472.7,2472.4,1.3067]
[1747758324841,1.321,2472.7,2472.4,10.1507]
[1747758325043,2.1296,2472.7,2472.4,10.1507]
[1747758325233,1.321,2472.7,2472.6,0.80862]
[1747758325428,0.8086,2472.7,2472.5,0.80863]
[1747758325634,0.80856,2472.8,2472.6,2.1153]
[1747758325836,1.321,2473.0,2472.6,1.3067]
[1747758326035,3.2078,2473.1,2472.4,13.60568]